[Event "Late-Titled-Tuesday-Blitz-April-16-2024"]
[Site "Chess.com"]
[Date "2024.04.16"]
[Round "1"]
[White "bipe137"]
[Black "lagedema"]
[Result "0-1"]
[WhiteElo "2706"]
[BlackElo "2426"]
[TimeControl "180+1"]
[EndTime "14:01:50 PDT"]
[Termination "lagedema won by resignation"]

1. d4 {[%clk 0:03:00.9]} 1... Nf6 {[%clk 0:02:59.1]} 2. c4 {[%clk 0:03:00.7]}
2... e6 {[%clk 0:02:59.7]} 3. Nc3 {[%clk 0:03:00.2]} 3... Bb4 {[%clk 0:03:00.1]}
4. f3 {[%clk 0:03:00.2]} 4... c5 {[%clk 0:02:58.2]} 5. d5 {[%clk 0:02:59.4]}
5... b5 {[%clk 0:02:56.5]} 6. e4 {[%clk 0:02:55.7]} 6... bxc4 {[%clk 0:02:56.9]}
7. Bxc4 {[%clk 0:02:56.2]} 7... Nxd5 {[%clk 0:02:57.1]} 8. Bxd5 {[%clk
0:02:55.8]} 8... exd5 {[%clk 0:02:57.4]} 9. Qxd5 {[%clk 0:02:56.4]} 9... Nc6
{[%clk 0:02:55.8]} 10. Ne2 {[%clk 0:02:56.8]} 10... Ba6 {[%clk 0:02:54]} 11. Be3
{[%clk 0:02:57.1]} 11... O-O {[%clk 0:02:45.8]} 12. Kf2 {[%clk 0:02:55.7]} 12...
Re8 {[%clk 0:02:43.4]} 13. Bxc5 {[%clk 0:02:43.3]} 13... Re5 {[%clk 0:02:37.5]}
0-1

[Event "Late-Titled-Tuesday-Blitz-April-16-2024"]
[Site "Chess.com"]
[Date "2024.04.16"]
[Round "1"]
[White "Lady_Nika"]
[Black "Harsha_Bharathakoti"]
[Result "0-1"]
[WhiteElo "2498"]
[BlackElo "2927"]
[TimeControl "180+1"]
[EndTime "14:02:09 PDT"]
[Termination "Harsha_Bharathakoti won by resignation"]

1. e4 {[%clk 0:02:58.7]} 1... c5 {[%clk 0:02:53.9]} 2. Nf3 {[%clk 0:02:58.7]}
2... e6 {[%clk 0:02:53.9]} 3. c3 {[%clk 0:02:58.5]} 3... Nf6 {[%clk 0:02:51.3]}
4. e5 {[%clk 0:02:58.2]} 4... Nd5 {[%clk 0:02:51.7]} 5. d4 {[%clk 0:02:58.5]}
5... cxd4 {[%clk 0:02:52.6]} 6. cxd4 {[%clk 0:02:59.4]} 6... b6 {[%clk
0:02:53.2]} 7. Be2 {[%clk 0:02:58.5]} 7... Ba6 {[%clk 0:02:52.8]} 8. O-O {[%clk
0:02:55.8]} 8... Be7 {[%clk 0:02:52.2]} 9. a3 {[%clk 0:02:55.3]} 9... Bxe2
{[%clk 0:02:48.1]} 10. Qxe2 {[%clk 0:02:55.3]} 10... Nc6 {[%clk 0:02:48.7]} 11.
Nc3 {[%clk 0:02:55]} 11... Nxc3 {[%clk 0:02:48]} 12. bxc3 {[%clk 0:02:55.9]}
12... d5 {[%clk 0:02:47.5]} 13. a4 {[%clk 0:02:54]} 13... Rc8 {[%clk 0:02:46.5]}
14. Ba3 {[%clk 0:02:53.8]} 14... Bxa3 {[%clk 0:02:44.1]} 15. Rxa3 {[%clk
0:02:54.7]} 15... O-O {[%clk 0:02:42.8]} 16. h3 {[%clk 0:02:47.5]} 16... Na5
{[%clk 0:02:42.5]} 17. Qa2 {[%clk 0:02:37.8]} 17... Qe7 {[%clk 0:02:32.1]} 18.
Nd2 {[%clk 0:02:36.3]} 18... Rc6 {[%clk 0:02:30.7]} 19. Rc1 {[%clk 0:02:32]}
19... Rfc8 {[%clk 0:02:30.8]} 20. Kh2 {[%clk 0:02:31]} 20... Qg5 {[%clk
0:02:25.9]} 21. Nb3 {[%clk 0:02:28.9]} 21... Nxb3 {[%clk 0:02:24.9]} 0-1

[Event "Late-Titled-Tuesday-Blitz-April-16-2024"]
[Site "Chess.com"]
[Date "2024.04.16"]
[Round "1"]
[White "a-z30"]
[Black "andrew-blr"]
[Result "1-0"]
[WhiteElo "2378"]
[BlackElo "2650"]
[TimeControl "180+1"]
[EndTime "14:02:17 PDT"]
[Termination "a-z30 won by resignation"]

1. d3 {[%clk 0:03:00.9]} 1... d5 {[%clk 0:02:59.5]} 2. Nf3 {[%clk 0:03:00.3]}
2... g6 {[%clk 0:02:58.9]} 3. g3 {[%clk 0:03:00.6]} 3... Bg7 {[%clk 0:02:59.2]}
4. Bg2 {[%clk 0:03:00.8]} 4... c5 {[%clk 0:02:59.9]} 5. O-O {[%clk 0:03:01]}
5... Nc6 {[%clk 0:03:00.5]} 6. c4 {[%clk 0:03:01.3]} 6... Nf6 {[%clk 0:02:57.6]}
7. Nc3 {[%clk 0:03:01.3]} 7... O-O {[%clk 0:02:55.7]} 8. cxd5 {[%clk 0:02:57.9]}
8... Nxd5 {[%clk 0:02:55.1]} 9. Nxd5 {[%clk 0:02:58.8]} 9... Qxd5 {[%clk
0:02:55.5]} 10. Be3 {[%clk 0:02:58.9]} 10... Qd6 {[%clk 0:02:26.4]} 11. Rc1
{[%clk 0:02:57.4]} 11... b6 {[%clk 0:02:26]} 12. d4 {[%clk 0:02:56.2]} 12...
cxd4 {[%clk 0:01:48]} 13. Rxc6 {[%clk 0:02:49.1]} 13... Qxc6 {[%clk 0:01:47.9]}
14. Nxd4 {[%clk 0:02:48.4]} 14... Qa4 {[%clk 0:01:45.7]} 15. Qxa4 {[%clk
0:02:42.1]} 1-0

[Event "Late-Titled-Tuesday-Blitz-April-16-2024"]
[Site "Chess.com"]
[Date "2024.04.16"]
[Round "1"]
[White "GlavkonVVS"]
[Black "Mariia89"]
[Result "1-0"]
[WhiteElo "2586"]
[BlackElo "2247"]
[TimeControl "180+1"]
[EndTime "14:03:00 PDT"]
[Termination "GlavkonVVS won by resignation"]

1. c4 {[%clk 0:03:00.9]} 1... c5 {[%clk 0:02:59.2]} 2. Nc3 {[%clk 0:03:00.8]}
2... Nc6 {[%clk 0:02:59.7]} 3. g3 {[%clk 0:03:01.4]} 3... g6 {[%clk 0:03:00.3]}
4. Bg2 {[%clk 0:03:01.9]} 4... Bg7 {[%clk 0:03:01]} 5. Nf3 {[%clk 0:03:02.6]}
5... Nf6 {[%clk 0:03:01.4]} 6. O-O {[%clk 0:03:02.9]} 6... O-O {[%clk
0:03:01.6]} 7. d3 {[%clk 0:03:03.5]} 7... d6 {[%clk 0:02:58.1]} 8. a3 {[%clk
0:03:00.4]} 8... Bd7 {[%clk 0:02:58.1]} 9. Rb1 {[%clk 0:03:00.7]} 9... Nd4
{[%clk 0:02:55]} 10. e3 {[%clk 0:02:57.6]} 10... Nc6 {[%clk 0:02:49.5]} 11. b4
{[%clk 0:02:55.3]} 11... cxb4 {[%clk 0:02:48.8]} 12. axb4 {[%clk 0:02:55.2]}
12... Bg4 {[%clk 0:02:31.1]} 13. h3 {[%clk 0:02:53.6]} 13... Bxf3 {[%clk
0:02:29.4]} 14. Bxf3 {[%clk 0:02:53.8]} 14... Rc8 {[%clk 0:02:26.8]} 15. b5
{[%clk 0:02:44.6]} 15... Ne5 {[%clk 0:02:26.6]} 16. Bxb7 {[%clk 0:02:42.6]}
16... Rb8 {[%clk 0:02:26.8]} 17. Bg2 {[%clk 0:02:42.5]} 17... Qa5 {[%clk
0:02:23.9]} 18. Qc2 {[%clk 0:02:39.5]} 18... Nfd7 {[%clk 0:02:07.3]} 19. Bd2
{[%clk 0:02:38.5]} 19... Qd8 {[%clk 0:02:00.9]} 20. Ra1 {[%clk 0:02:31.6]} 1-0

[Event "Late-Titled-Tuesday-Blitz-April-16-2024"]
[Site "Chess.com"]
[Date "2024.04.16"]
[Round "1"]
[White "MyDream003"]
[Black "DinaBelenkaya"]
[Result "1-0"]
[WhiteElo "2799"]
[BlackElo "2441"]
[TimeControl "180+1"]
[EndTime "14:03:13 PDT"]
[Termination "MyDream003 won by resignation"]

1. e4 {[%clk 0:03:00.9]} 1... c6 {[%clk 0:02:59.9]} 2. d4 {[%clk 0:02:55.6]}
2... d5 {[%clk 0:03:00.8]} 3. e5 {[%clk 0:02:55.5]} 3... Bf5 {[%clk 0:02:57.2]}
4. Nf3 {[%clk 0:02:55.7]} 4... e6 {[%clk 0:02:56.3]} 5. Be2 {[%clk 0:02:56]}
5... Ne7 {[%clk 0:02:54.5]} 6. O-O {[%clk 0:02:53.6]} 6... Bg6 {[%clk
0:02:51.5]} 7. Nbd2 {[%clk 0:02:53.4]} 7... Nf5 {[%clk 0:02:50.7]} 8. Nb3 {[%clk
0:02:53.3]} 8... Be7 {[%clk 0:02:49.7]} 9. c3 {[%clk 0:02:51]} 9... Nd7 {[%clk
0:02:46.1]} 10. Bd3 {[%clk 0:02:41.8]} 10... h5 {[%clk 0:02:42.3]} 11. Qe2
{[%clk 0:02:32]} 11... a6 {[%clk 0:02:30.1]} 12. h3 {[%clk 0:02:31.7]} 12... c5
{[%clk 0:02:27.9]} 13. Nxc5 {[%clk 0:02:28.3]} 13... Nxc5 {[%clk 0:02:28.8]} 14.
dxc5 {[%clk 0:02:29.2]} 14... Bxc5 {[%clk 0:02:29.7]} 15. Bxf5 {[%clk
0:02:25.1]} 15... Bxf5 {[%clk 0:02:28.7]} 16. Be3 {[%clk 0:02:25.8]} 16... Qb6
{[%clk 0:02:27.4]} 17. Bxc5 {[%clk 0:02:25.6]} 17... Qxc5 {[%clk 0:02:28.3]} 18.
Nd4 {[%clk 0:02:26.3]} 18... Be4 {[%clk 0:02:27]} 19. a3 {[%clk 0:02:15.8]}
19... h4 {[%clk 0:02:21.4]} 20. f3 {[%clk 0:02:11.9]} 20... Bg6 {[%clk
0:02:18.2]} 21. Qf2 {[%clk 0:02:10.6]} 21... Rh5 {[%clk 0:02:16.5]} 22. Rfe1
{[%clk 0:02:10.3]} 22... Kf8 {[%clk 0:02:11.6]} 23. Nxe6+ {[%clk 0:02:09.4]}
23... fxe6 {[%clk 0:02:07]} 24. Qxc5+ {[%clk 0:02:10.3]} 24... Kg8 {[%clk
0:02:06.6]} 25. Rad1 {[%clk 0:02:08]} 1-0

[Event "Late-Titled-Tuesday-Blitz-April-16-2024"]
[Site "Chess.com"]
[Date "2024.04.16"]
[Round "1"]
[White "Brown_Mamba24"]
[Black "teresin05"]
[Result "1-0"]
[WhiteElo "2637"]
[BlackElo "2341"]
[TimeControl "180+1"]
[EndTime "14:03:59 PDT"]
[Termination "Brown_Mamba24 won by resignation"]

1. d4 {[%clk 0:03:00.9]} 1... d5 {[%clk 0:02:58.7]} 2. Nf3 {[%clk 0:03:00.6]}
2... Nf6 {[%clk 0:02:58.4]} 3. c4 {[%clk 0:03:01]} 3... c6 {[%clk 0:02:45.5]} 4.
Nbd2 {[%clk 0:03:00.7]} 4... Bf5 {[%clk 0:02:43.1]} 5. Nh4 {[%clk 0:03:01]} 5...
Bg6 {[%clk 0:02:22.9]} 6. Qb3 {[%clk 0:03:00.8]} 6... Qb6 {[%clk 0:02:18]} 7.
Qh3 {[%clk 0:03:01]} 7... Nbd7 {[%clk 0:01:57.7]} 8. c5 {[%clk 0:02:55]} 8...
Qc7 {[%clk 0:01:49.5]} 9. Nxg6 {[%clk 0:02:55.6]} 9... fxg6 {[%clk 0:01:47.6]}
10. Qe6 {[%clk 0:02:55.8]} 10... g5 {[%clk 0:01:23.1]} 11. Nf3 {[%clk
0:02:55.8]} 11... h6 {[%clk 0:01:22.9]} 12. g3 {[%clk 0:02:53]} 12... Ne4 {[%clk
0:01:21.5]} 13. Qg6+ {[%clk 0:02:35.8]} 13... Kd8 {[%clk 0:01:20.3]} 14. Bh3
{[%clk 0:02:35.5]} 14... Ndf6 {[%clk 0:01:08]} 15. Ne5 {[%clk 0:02:33.7]} 15...
Rg8 {[%clk 0:00:22]} 16. Nf7+ {[%clk 0:02:32.3]} 16... Ke8 {[%clk 0:00:21.2]}
17. Nd6+ {[%clk 0:02:32.1]} 17... Kd8 {[%clk 0:00:20.3]} 18. Qe8+ {[%clk
0:02:32.4]} 1-0

[Event "Late-Titled-Tuesday-Blitz-April-16-2024"]
[Site "Chess.com"]
[Date "2024.04.16"]
[Round "1"]
[White "duone"]
[Black "Vahe_Danielyan"]
[Result "0-1"]
[WhiteElo "2344"]
[BlackElo "2640"]
[TimeControl "180+1"]
[EndTime "14:04:11 PDT"]
[Termination "Vahe_Danielyan won by resignation"]

1. e4 {[%clk 0:02:59.2]} 1... e6 {[%clk 0:02:58.4]} 2. d4 {[%clk 0:02:58.7]}
2... d5 {[%clk 0:02:59.3]} 3. Nc3 {[%clk 0:02:56.3]} 3... Bb4 {[%clk 0:02:57.3]}
4. e5 {[%clk 0:02:53.3]} 4... c5 {[%clk 0:02:54.5]} 5. a3 {[%clk 0:02:49.2]}
5... Bxc3+ {[%clk 0:02:52.6]} 6. bxc3 {[%clk 0:02:49.2]} 6... Ne7 {[%clk
0:02:53.5]} 7. Qg4 {[%clk 0:02:48.6]} 7... Nbc6 {[%clk 0:02:46.8]} 8. Nf3 {[%clk
0:02:46]} 8... Bd7 {[%clk 0:02:45.3]} 9. Qxg7 {[%clk 0:02:44.1]} 9... Rg8 {[%clk
0:02:44.9]} 10. Qxh7 {[%clk 0:02:44.5]} 10... Qa5 {[%clk 0:02:44.2]} 11. Qd3
{[%clk 0:02:41.5]} 11... O-O-O {[%clk 0:02:42.9]} 12. Bd2 {[%clk 0:02:39.9]}
12... c4 {[%clk 0:02:36.9]} 13. Qe3 {[%clk 0:02:34.1]} 13... Nf5 {[%clk
0:02:34.6]} 14. Qf4 {[%clk 0:02:32.4]} 14... Qa4 {[%clk 0:02:32.2]} 15. Ra2
{[%clk 0:02:29.8]} 15... Nce7 {[%clk 0:02:21.2]} 16. h4 {[%clk 0:02:22.1]} 16...
Ng6 {[%clk 0:02:19.9]} 17. Qh2 {[%clk 0:02:22]} 17... Qb5 {[%clk 0:02:19.3]} 18.
Ra1 {[%clk 0:02:18.3]} 18... Qb2 {[%clk 0:02:18.4]} 19. Rc1 {[%clk 0:02:18.2]}
19... Ba4 {[%clk 0:02:09.1]} 20. g4 {[%clk 0:02:16.3]} 20... Nfe7 {[%clk
0:02:05.1]} 21. h5 {[%clk 0:02:16.7]} 21... Nf8 {[%clk 0:02:05.2]} 22. Ng5
{[%clk 0:02:11.7]} 22... Bxc2 {[%clk 0:01:45.9]} 23. Nxf7 {[%clk 0:02:10.3]}
23... Rxg4 {[%clk 0:01:45.2]} 24. f3 {[%clk 0:02:04.3]} 24... Rg8 {[%clk
0:01:37.8]} 25. Nxd8 {[%clk 0:02:03.7]} 25... Kxd8 {[%clk 0:01:38.6]} 26. Be2
{[%clk 0:02:02.2]} 26... Nf5 {[%clk 0:01:31.6]} 27. h6 {[%clk 0:02:01.4]} 27...
Nh7 {[%clk 0:01:30.1]} 28. Rg1 {[%clk 0:01:56.5]} 28... Rf8 {[%clk 0:01:27.2]}
29. Rg7 {[%clk 0:01:52.9]} 29... Nxg7 {[%clk 0:01:14.2]} 30. hxg7 {[%clk
0:01:53.1]} 30... Rg8 {[%clk 0:01:15.1]} 31. Qxh7 {[%clk 0:01:53]} 31... Bxh7
{[%clk 0:01:15.7]} 0-1

[Event "Late-Titled-Tuesday-Blitz-April-16-2024"]
[Site "Chess.com"]
[Date "2024.04.16"]
[Round "1"]
[White "GianmarcoVaR"]
[Black "Akhayan"]
[Result "1-0"]
[WhiteElo "2739"]
[BlackElo "2409"]
[TimeControl "180+1"]
[EndTime "14:04:16 PDT"]
[Termination "GianmarcoVaR won by resignation"]

1. e3 {[%clk 0:02:54.5]} 1... e5 {[%clk 0:02:58.7]} 2. c4 {[%clk 0:02:53]} 2...
Nf6 {[%clk 0:02:57.5]} 3. Nc3 {[%clk 0:02:53]} 3... c6 {[%clk 0:02:57.2]} 4. Nf3
{[%clk 0:02:49.1]} 4... e4 {[%clk 0:02:56.2]} 5. Nd4 {[%clk 0:02:49.8]} 5... d5
{[%clk 0:02:55.8]} 6. cxd5 {[%clk 0:02:48.8]} 6... cxd5 {[%clk 0:02:54.9]} 7. b3
{[%clk 0:02:42]} 7... Qb6 {[%clk 0:02:45.4]} 8. Bb2 {[%clk 0:02:42.1]} 8... Bc5
{[%clk 0:02:41.6]} 9. Na4 {[%clk 0:02:42.3]} 9... Qc7 {[%clk 0:02:29]} 10. Nxc5
{[%clk 0:02:39]} 10... Qxc5 {[%clk 0:02:28.2]} 11. Rc1 {[%clk 0:02:39]} 11...
Qxc1 {[%clk 0:01:55]} 12. Qxc1 {[%clk 0:02:37.3]} 12... O-O {[%clk 0:01:55.6]}
13. Be2 {[%clk 0:02:34.4]} 13... Nbd7 {[%clk 0:01:55.8]} 14. O-O {[%clk
0:02:34.5]} 14... Ne5 {[%clk 0:01:55.8]} 15. Qc7 {[%clk 0:02:27.8]} 15... Ng6
{[%clk 0:01:54.1]} 16. Rc1 {[%clk 0:02:25.9]} 16... Bd7 {[%clk 0:01:52.6]} 17.
Qxb7 {[%clk 0:02:21.7]} 17... Nh4 {[%clk 0:01:50.3]} 18. Nc6 {[%clk 0:01:46.2]}
18... Be6 {[%clk 0:01:33.4]} 19. Ne7+ {[%clk 0:01:34.8]} 19... Kh8 {[%clk
0:01:33]} 20. Bxf6 {[%clk 0:01:35.2]} 20... gxf6 {[%clk 0:01:33.1]} 21. Nxd5
{[%clk 0:01:33.6]} 21... Rab8 {[%clk 0:01:29.8]} 22. Qe7 {[%clk 0:01:33.1]}
22... Bxd5 {[%clk 0:01:19.9]} 23. Qxf6+ {[%clk 0:01:32.6]} 23... Kg8 {[%clk
0:01:20.6]} 24. Qxh4 {[%clk 0:01:33.4]} 24... Rb6 {[%clk 0:01:18.7]} 25. Qg5+
{[%clk 0:01:33.3]} 25... Rg6 {[%clk 0:01:18.8]} 26. Qxd5 {[%clk 0:01:33.7]} 1-0

[Event "Late-Titled-Tuesday-Blitz-April-16-2024"]
[Site "Chess.com"]
[Date "2024.04.16"]
[Round "1"]
[White "cristiano78"]
[Black "Squirlolz"]
[Result "1-0"]
[WhiteElo "2287"]
[BlackElo "2579"]
[TimeControl "180+1"]
[EndTime "14:04:17 PDT"]
[Termination "cristiano78 won by resignation"]

1. d4 {[%clk 0:02:59]} 1... c5 {[%clk 0:02:56.7]} 2. d5 {[%clk 0:02:59]} 2... g6
{[%clk 0:02:56.5]} 3. c4 {[%clk 0:02:59]} 3... Bg7 {[%clk 0:02:56.8]} 4. Nf3
{[%clk 0:02:59.6]} 4... d6 {[%clk 0:02:56.9]} 5. Nc3 {[%clk 0:02:57.4]} 5...
Bxc3+ {[%clk 0:02:48.4]} 6. bxc3 {[%clk 0:02:56.9]} 6... e5 {[%clk 0:02:49.3]}
7. e4 {[%clk 0:02:55.4]} 7... f5 {[%clk 0:02:43.8]} 8. Bd3 {[%clk 0:02:46.9]}
8... Nf6 {[%clk 0:02:39.8]} 9. Qc2 {[%clk 0:02:40.2]} 9... fxe4 {[%clk 0:02:36]}
10. Bxe4 {[%clk 0:02:40]} 10... Nxe4 {[%clk 0:02:36.9]} 11. Qxe4 {[%clk
0:02:40.1]} 11... Bf5 {[%clk 0:02:37.8]} 12. Qe2 {[%clk 0:02:40]} 12... Nd7
{[%clk 0:02:34.7]} 13. h3 {[%clk 0:02:37]} 13... Nf6 {[%clk 0:02:26.9]} 14. Bg5
{[%clk 0:02:26.8]} 14... h6 {[%clk 0:02:22.8]} 15. Bxf6 {[%clk 0:02:03.6]} 15...
Qxf6 {[%clk 0:02:23.7]} 16. Nd2 {[%clk 0:02:03.6]} 16... O-O {[%clk 0:02:22.6]}
17. O-O {[%clk 0:02:00.3]} 17... e4 {[%clk 0:02:12.9]} 18. Nxe4 {[%clk
0:01:57.2]} 18... Qe7 {[%clk 0:02:04.5]} 19. Rfe1 {[%clk 0:01:50]} 19... Rae8
{[%clk 0:02:04.5]} 20. f3 {[%clk 0:01:47.7]} 20... Bxe4 {[%clk 0:01:58.2]} 21.
Qxe4 {[%clk 0:01:43.7]} 21... Qxe4 {[%clk 0:01:48.7]} 22. Rxe4 {[%clk
0:01:27.2]} 22... Rxe4 {[%clk 0:01:43.1]} 23. fxe4 {[%clk 0:01:27.4]} 23... Rf4
{[%clk 0:01:42.1]} 24. Re1 {[%clk 0:01:23.8]} 24... Kg7 {[%clk 0:01:40.5]} 25.
Re3 {[%clk 0:01:24.1]} 25... Kf6 {[%clk 0:01:38.3]} 26. g3 {[%clk 0:01:24.2]}
1-0

[Event "Late-Titled-Tuesday-Blitz-April-16-2024"]
[Site "Chess.com"]
[Date "2024.04.16"]
[Round "1"]
[White "Tolyanius"]
[Black "StopLookingAtMyProfile"]
[Result "1-0"]
[WhiteElo "2630"]
[BlackElo "2327"]
[TimeControl "180+1"]
[EndTime "14:04:19 PDT"]
[Termination "Tolyanius won by checkmate"]

1. e4 {[%clk 0:03:00.9]} 1... e6 {[%clk 0:02:57.1]} 2. Nf3 {[%clk 0:03:00.4]}
2... d5 {[%clk 0:02:57.3]} 3. e5 {[%clk 0:03:01]} 3... c5 {[%clk 0:02:57.3]} 4.
b4 {[%clk 0:03:01.8]} 4... cxb4 {[%clk 0:02:57.8]} 5. d4 {[%clk 0:03:02.5]} 5...
Qa5 {[%clk 0:02:56.8]} 6. a3 {[%clk 0:03:03.1]} 6... Bd7 {[%clk 0:02:55]} 7. Bd2
{[%clk 0:02:29.3]} 7... Bb5 {[%clk 0:02:47.8]} 8. axb4 {[%clk 0:02:15.3]} 8...
Qxa1 {[%clk 0:02:47.4]} 9. Bxb5+ {[%clk 0:02:15.8]} 9... Nc6 {[%clk 0:02:47.6]}
10. O-O {[%clk 0:02:15.7]} 10... a6 {[%clk 0:02:28.3]} 11. Bxc6+ {[%clk
0:02:08.9]} 11... bxc6 {[%clk 0:02:28.1]} 12. c4 {[%clk 0:02:09.3]} 12... Qa2
{[%clk 0:02:18.7]} 13. c5 {[%clk 0:02:08.8]} 13... a5 {[%clk 0:02:15.1]} 14. Nc3
{[%clk 0:02:08.2]} 14... Qc4 {[%clk 0:02:11.8]} 15. Qa4 {[%clk 0:02:07.5]} 15...
Qa6 {[%clk 0:02:07.2]} 16. b5 {[%clk 0:02:06.9]} 16... cxb5 {[%clk 0:02:07.2]}
17. Nxb5 {[%clk 0:02:07.8]} 17... Kd8 {[%clk 0:01:59.7]} 18. Ra1 {[%clk
0:01:57.6]} 18... Ne7 {[%clk 0:01:34.1]} 19. Ng5 {[%clk 0:01:35.3]} 19... Rb8
{[%clk 0:01:06.4]} 20. Nxf7+ {[%clk 0:01:31.4]} 20... Ke8 {[%clk 0:01:05.9]} 21.
Nbd6# {[%clk 0:01:31.2]} 1-0

[Event "Late-Titled-Tuesday-Blitz-April-16-2024"]
[Site "Chess.com"]
[Date "2024.04.16"]
[Round "1"]
[White "Andrii_Prydun"]
[Black "Russian_berezka"]
[Result "1-0"]
[WhiteElo "2349"]
[BlackElo "2616"]
[TimeControl "180+1"]
[EndTime "14:04:21 PDT"]
[Termination "Andrii_Prydun won by resignation"]

1. e4 {[%clk 0:02:53.1]} 1... c5 {[%clk 0:02:58]} 2. d4 {[%clk 0:02:52.8]} 2...
cxd4 {[%clk 0:02:55.4]} 3. c3 {[%clk 0:02:52.2]} 3... d3 {[%clk 0:02:55.9]} 4.
c4 {[%clk 0:02:50.2]} 4... Nc6 {[%clk 0:02:56.8]} 5. Nc3 {[%clk 0:02:48.7]} 5...
g6 {[%clk 0:02:53.8]} 6. Bxd3 {[%clk 0:02:45.9]} 6... Bg7 {[%clk 0:02:54.2]} 7.
Nf3 {[%clk 0:02:45.7]} 7... d6 {[%clk 0:02:54.7]} 8. h3 {[%clk 0:02:45.8]} 8...
Nf6 {[%clk 0:02:54.2]} 9. O-O {[%clk 0:02:44.5]} 9... O-O {[%clk 0:02:54.8]} 10.
Be3 {[%clk 0:02:41.6]} 10... Be6 {[%clk 0:02:51.1]} 11. Qd2 {[%clk 0:02:39.8]}
11... Rc8 {[%clk 0:02:48]} 12. Rac1 {[%clk 0:02:36.5]} 12... Nb4 {[%clk
0:02:43.5]} 13. b3 {[%clk 0:02:34.4]} 13... Nxd3 {[%clk 0:02:42.8]} 14. Qxd3
{[%clk 0:02:35.3]} 14... Nd7 {[%clk 0:02:43.2]} 15. Bd4 {[%clk 0:02:33.9]} 15...
Nc5 {[%clk 0:02:42.8]} 16. Qe3 {[%clk 0:02:33.1]} 16... a6 {[%clk 0:02:39.1]}
17. Bxg7 {[%clk 0:02:28.7]} 17... Kxg7 {[%clk 0:02:40]} 18. Nd4 {[%clk
0:02:27.2]} 18... Qa5 {[%clk 0:02:38.2]} 19. f4 {[%clk 0:02:25.7]} 19... Bd7
{[%clk 0:02:19]} 20. Rf2 {[%clk 0:02:21.6]} 20... Ne6 {[%clk 0:02:11]} 21. Nde2
{[%clk 0:02:20.1]} 21... Qc5 {[%clk 0:02:10.6]} 22. Qf3 {[%clk 0:02:17.6]} 22...
Nd4 {[%clk 0:02:01.9]} 23. Nxd4 {[%clk 0:02:15]} 23... Qxd4 {[%clk 0:02:02.8]}
24. Rd1 {[%clk 0:02:07.8]} 24... Qc5 {[%clk 0:02:03.1]} 25. Rd5 {[%clk
0:02:07.5]} 25... Qa7 {[%clk 0:01:59.4]} 26. f5 {[%clk 0:01:44.4]} 26... gxf5
{[%clk 0:01:48.9]} 27. exf5 {[%clk 0:01:41.7]} 27... Bc6 {[%clk 0:01:48.8]} 28.
f6+ {[%clk 0:01:41.9]} 28... Kh8 {[%clk 0:01:43.8]} 29. fxe7 {[%clk 0:01:42.6]}
29... Rg8 {[%clk 0:01:42.4]} 30. Qf6+ {[%clk 0:01:41]} 30... Rg7 {[%clk
0:01:42.5]} 31. Rg5 {[%clk 0:01:41.6]} 31... Rg8 {[%clk 0:01:39.4]} 32. Nd5
{[%clk 0:01:38.7]} 32... Bxd5 {[%clk 0:01:32.2]} 33. e8=Q {[%clk 0:01:36.1]} 1-0

[Event "Late-Titled-Tuesday-Blitz-April-16-2024"]
[Site "Chess.com"]
[Date "2024.04.16"]
[Round "1"]
[White "Cuchulin"]
[Black "NMJeevanK"]
[Result "0-1"]
[WhiteElo "2187"]
[BlackElo "2560"]
[TimeControl "180+1"]
[EndTime "14:04:23 PDT"]
[Termination "NMJeevanK won by resignation"]

1. d4 {[%clk 0:03:00.8]} 1... Nf6 {[%clk 0:02:58.9]} 2. Bf4 {[%clk 0:03:01.3]}
2... d6 {[%clk 0:02:58.2]} 3. Nc3 {[%clk 0:02:59.8]} 3... Nbd7 {[%clk
0:02:58.6]} 4. e4 {[%clk 0:02:59.7]} 4... c6 {[%clk 0:02:56.7]} 5. Nf3 {[%clk
0:02:58]} 5... Qa5 {[%clk 0:02:55]} 6. Qd2 {[%clk 0:02:53.5]} 6... e5 {[%clk
0:02:54.3]} 7. dxe5 {[%clk 0:02:52.3]} 7... dxe5 {[%clk 0:02:55.2]} 8. Be3
{[%clk 0:02:51.5]} 8... Bb4 {[%clk 0:02:53.8]} 9. Bd3 {[%clk 0:02:49]} 9... O-O
{[%clk 0:02:52.7]} 10. O-O {[%clk 0:02:48.5]} 10... Re8 {[%clk 0:02:50.9]} 11.
a3 {[%clk 0:02:48.8]} 11... Bxc3 {[%clk 0:02:48.6]} 12. bxc3 {[%clk 0:02:49.7]}
12... Nc5 {[%clk 0:02:46]} 13. Bxc5 {[%clk 0:02:16.8]} 13... Qxc5 {[%clk
0:02:46.9]} 14. Rfe1 {[%clk 0:02:16.4]} 14... Bg4 {[%clk 0:02:44.9]} 15. Qe3
{[%clk 0:02:12.3]} 15... Qxc3 {[%clk 0:02:42.6]} 16. Ng5 {[%clk 0:02:03.9]}
16... h6 {[%clk 0:02:39.6]} 17. h3 {[%clk 0:02:02.3]} 17... Bd7 {[%clk
0:02:30.1]} 18. Nf3 {[%clk 0:02:00.6]} 18... Be6 {[%clk 0:02:14.5]} 19. a4
{[%clk 0:01:59.9]} 19... Bc4 {[%clk 0:02:11.2]} 20. Bxc4 {[%clk 0:01:57.5]}
20... Qxc4 {[%clk 0:02:12.1]} 21. c3 {[%clk 0:01:51.8]} 21... a5 {[%clk
0:02:05.3]} 22. Nd2 {[%clk 0:01:48.4]} 22... Qe6 {[%clk 0:01:59.3]} 23. f3
{[%clk 0:01:48.5]} 23... Red8 {[%clk 0:01:55.9]} 24. Rab1 {[%clk 0:01:38]} 24...
Qa2 {[%clk 0:01:51]} 25. Nf1 {[%clk 0:01:36]} 25... Rab8 {[%clk 0:01:47]} 26.
Ra1 {[%clk 0:01:31.6]} 26... Qe6 {[%clk 0:01:44.3]} 27. Reb1 {[%clk 0:01:27.1]}
27... Nh5 {[%clk 0:01:42.8]} 28. Rb6 {[%clk 0:01:25.1]} 28... Nf4 {[%clk
0:01:41.6]} 29. Rab1 {[%clk 0:01:24.6]} 29... Qg6 {[%clk 0:01:35.3]} 30. Qf2
{[%clk 0:01:23.2]} 30... Nxh3+ {[%clk 0:01:35.6]} 0-1